{"text_format":"1","workbook":"xlsx","n_sheets":2,"sheets":["المثال الأول","المثال الثانى"],"not_rendered":{"charts":0,"images":0,"macros":1,"external_links":0,"defined_names":0,"comments":0,"pivot_tables":0},"unopened":[],"bounds":{"document_bytes":16777216,"sheet_cells":100000,"rows_first":2000,"rows_last":500,"rows_between":2000,"halvings":0,"cell_chars":16384,"cell_head_chars":4096},"cells_cut":0,"cells_raw":0,"read":"whole","date_system":"1900"}

{"sheet":"المثال الأول","index":0,"n_rows":18,"n_cols":13,"rows_kept":18,"cut":false,"hidden":false,"merged":[[2,5,2,7]]}
[]
[]
[null,null,null,null,null,"المثال الاول"]
[]
[null,"الكود","الإسم","الوظيفة","السن",null,null,null,null,"الكود","الإسم","الوظيفة","السن"]
[null,1001,"ياسر 1","محاسب1",30,null,null,null,null,1001,"ياسر 1","محاسب1",30]
[null,{"$f":"B6+1","v":1002},"ياسر 2","محاسب2",31,null,null,null,null,1002,"ياسر 2","محاسب2",31]
[null,{"$f":"B7+1","v":1003},"ياسر 3","محاسب3",32,null,null,null,null,1003,"ياسر 3","محاسب3",32]
[null,1004,"ياسر 4","محاسب4",33,null,null,null,null,1005,"ياسر 5","محاسب5",34]
[null,1005,"ياسر 5","محاسب5",34,null,null,null,null,1009,"ياسر 9","محاسب9",38]
[null,1006,"ياسر 6","محاسب6",35,null,null,null,null,1010,"ياسر 10","محاسب10",39]
[null,1007,"ياسر 7","محاسب7",36]
[null,1008,"ياسر 8","محاسب8",37]
[null,1009,"ياسر 9","محاسب9",38]
[null,1010,"ياسر 10","محاسب10",39]
[null,1011,"ياسر 11","محاسب11",40]
[null,1012,"ياسر 12","محاسب12",41]
[null,1013,"ياسر 13","محاسب13",42]

{"sheet":"المثال الثانى","index":1,"n_rows":18,"n_cols":13,"rows_kept":18,"cut":false,"hidden":false,"merged":[[1,6,1,8]]}
[]
[null,null,null,null,null,null,"المثال الثانى"]
[]
[]
[null,"الكود","الإسم","الوظيفة","السن",null,null,null,null,"الكود","الإسم","الوظيفة","السن"]
[null,1001,"ياسر 1","محاسب1",30,null,null,null,null,1001]
[null,{"$f":"B6+1","v":1002},"ياسر 2","محاسب2",31,null,null,null,null,{"$f":"J6+1","v":1002}]
[null,{"$f":"B7+1","v":1003},"ياسر 3","محاسب3",32,null,null,null,null,{"$f":"J7+1","v":1003}]
[null,1004,"ياسر 4","محاسب4",33,null,null,null,null,1004]
[null,1005,"ياسر 5","محاسب5",34,null,null,null,null,1005]
[null,1006,"ياسر 6","محاسب6",35,null,null,null,null,1006]
[null,1007,"ياسر 7","محاسب7",36,null,null,null,null,1007]
[null,1008,"ياسر 8","محاسب8",37,null,null,null,null,1008]
[null,1009,"ياسر 9","محاسب9",38,null,null,null,null,1009]
[null,1010,"ياسر 10","محاسب10",39,null,null,null,null,1010]
[null,1011,"ياسر 11","محاسب11",40,null,null,null,null,1011]
[null,1012,"ياسر 12","محاسب12",41,null,null,null,null,1012]
[null,1013,"ياسر 13","محاسب13",42,null,null,null,null,1013]